fUST/lending_fUST_20260301
["ID","MTS","AMOUNT","RATE_DAILY","PERIOD"]
[406940017,1772308245756,-764.61998309,0.0002489,2]
[406940018,1772308245765,-245.00212876,0.0002489,2]
[406940019,1772308245774,-500.0,0.00024899,2]
[406940020,1772308245783,-500.0,0.00024899,2]
[406940021,1772308245793,-500.0,0.00024899,2]
[406940022,1772308245802,-500.0,0.00024899,2]
[406940023,1772308245812,-500.0,0.00024899,2]
[406940024,1772308245822,-500.0,0.00024899,2]
[406940025,1772308245831,-500.0,0.00024899,2]
[406940026,1772308245840,-500.0,0.00024899,2]
[406940027,1772308245850,-500.0,0.00024899,2]
[406940028,1772308245859,-382.37596775,0.00024899,2]
[406940029,1772308245868,-66604.00583776,0.000249,2]
[406940030,1772308245894,-255.02381021,0.000249,2]
[406940040,1772308246364,-2308.46518518,0.00024651,2]
[406940041,1772308246442,-2836.07477566,0.00024651,2]
[406940042,1772308246454,-11659.38075004,0.00024651,2]
[406940043,1772308246463,-20231.8409254,0.000249,2]
[406940044,1772308246473,-8650.54925851,0.000249,2]
[406940045,1772308246484,-63004.37518612,0.000249,2]
[406940046,1772308246502,-13873.57629585,0.000249,2]
[406940052,1772308246616,-23414.94900374,0.000249,2]
[406940053,1772308246674,-971.313,0.000249,2]
[406940054,1772308246685,-8421.86056263,0.000249,2]
[406940120,1772309431469,-924.03585033,0.00013139,2]
[406940122,1772309431479,-150.0,0.00013206,2]
[406940124,1772309431488,-222.98138449,0.00013272,2]
[406940127,1772309431499,-77.01861551,0.00013272,2]
[406940129,1772309431508,-300.0,0.00013272,2]
[406940131,1772309431517,-31.42194528,0.00013272,2]
[406940138,1772309431580,-268.57805472,0.00013272,2]
[406940140,1772309431590,-300.0,0.00013272,2]
[406940142,1772309431599,-356.43310291,0.00013272,2]
[406940207,1772309437639,-843.56689709,0.00013272,2]
[406940208,1772309437649,-500.0,0.00013273,2]
[406940209,1772309437659,-2896.85642025,0.00013273,2]
[406940210,1772309437668,-1810.68113533,0.00013599,2]
[406940211,1772309437678,-300.0,0.00013673,2]
[406940212,1772309437687,-3915.71648806,0.00013689,2]
[406940213,1772309437699,-262.75856655,0.00013689,2]
[406940265,1772309440028,-6772.94129258,0.00013689,2]
[406940286,1772309442720,-806.99127554,0.00013689,2]
[406940287,1772309442731,-3896.11847603,0.00013689,2]
[406940300,1772309445728,-4717.07435341,0.00013689,2]
[406940301,1772309445740,-2044.82982417,0.00013689,2]
[406940302,1772309445749,-164.22483031,0.00013689,2]
[406940303,1772309445758,-500.0,0.00013689,2]
[406940304,1772309445768,-183.08322203,0.00013689,2]
[406940305,1772309445777,-500.0,0.00013689,2]
[406940306,1772309445787,-500.0,0.00013689,2]
[406940307,1772309445796,-500.0,0.00013689,2]
[406940308,1772309445806,-630.03168394,0.00013689,2]
[406940309,1772309445815,-500.0,0.00013689,2]
[406940310,1772309445825,-500.0,0.00013689,2]
[406940311,1772309445834,-500.0,0.00013689,2]
[406940312,1772309445843,-500.0,0.00013689,2]
[406940313,1772309445853,-428.55760017,0.00013689,2]
[406940314,1772309445862,-500.0,0.00013689,2]
[406940315,1772309445871,-324.20131183,0.00013689,2]
[406940316,1772309445881,-3789.85,0.0001369,2]
[406940317,1772309445890,-500.0,0.00013699,2]
[406940318,1772309445900,-174.05486818,0.00013699,2]
[406940319,1772309445909,-636.18154416,0.00013821,2]
[406940320,1772309445919,-300.0,0.00014221,2]
[406940321,1772309445928,-386.12265086,0.00014247,2]
[406940322,1772309445937,-420.0,0.00014551,2]
[406940323,1772309445948,-1047.0,0.00014599,2]
[406940324,1772309445958,-598.46302859,0.000149,2]
[406940325,1772309445970,-198.01686278,0.000149,2]
[406940326,1772309445980,-1500.0,0.00015,2]
[406940327,1772309445989,-177.0,0.00015206,2]
[406940328,1772309445999,-1810.68113533,0.00015856,2]
[406940329,1772309446009,-1016.2789654,0.00016161,2]
[406940330,1772309446018,-250.0,0.00016385,2]
[406940331,1772309446028,-204.0,0.00017206,2]
[406940332,1772309446037,-744.89972287,0.00017984,2]
[406940333,1772309446047,-1810.68113533,0.00018114,2]
[406940334,1772309446057,-231.0,0.00019206,2]
[406940335,1772309446066,-1810.68113533,0.00020371,2]
[406940336,1772309446075,-904.5,0.00020634,10]
[406940337,1772309446085,-3000.0,0.00021,2]
[406940338,1772309446094,-3000.0,0.0002101,2]
[406940339,1772309446103,-3000.0,0.0002102,2]
[406940341,1772309446112,-3000.0,0.0002103,2]
[406940343,1772309446122,-3000.0,0.0002104,2]
[406940344,1772309446131,-3000.0,0.0002105,2]
[406940345,1772309446140,-3000.0,0.0002106,2]
[406940346,1772309446150,-4314.811063,0.0002107,2]
[406940347,1772309446159,-258.0,0.00021206,2]
[406940348,1772309446168,-600.0,0.00021428,10]
[406940349,1772309446177,-255.024,0.00022258,2]
[406940350,1772309446186,-1810.68113533,0.00022628,2]
[406940351,1772309446196,-285.0,0.00023206,2]
[406940352,1772309446212,-720.0,0.00023571,10]
[406940353,1772309446222,-500.0,0.00023643,2]
[406940354,1772309446232,-500.0,0.00023643,2]
[406940355,1772309446242,-500.0,0.00023643,2]
[406940356,1772309446251,-500.0,0.00023643,2]
[406940357,1772309446261,-250.0,0.00023643,2]
[406940358,1772309446270,-150.0,0.00024658,2]
[406940359,1772309446281,-500.0,0.00024849,2]
[406940360,1772309446290,-195.3070626,0.00024849,2]
[406940361,1772309446299,-1456.1148187,0.00024882,2]
[406940362,1772309446308,-8334.9729213,0.00024882,2]
[406940363,1772309446318,-7597.95747664,0.00024882,2]
[406940364,1772309446329,-812.22864881,0.00024882,2]
[406940365,1772309446340,-210.32428885,0.00024882,2]
[406940366,1772309446349,-1781.73554639,0.00024885,2]
[406940565,1772310643159,-500.0,0.00013273,2]
[406940566,1772310643169,-150.0,0.00013273,2]
[406940567,1772310643179,-1000.0,0.00013821,2]
[406940568,1772310643188,-1500.0,0.00014368,2]
[406940569,1772310643198,-177.0,0.00015273,2]
[406940570,1772310643207,-204.0,0.00017273,2]
[406940571,1772310643216,-744.89972287,0.00017997,2]
[406940572,1772310643225,-231.0,0.00019273,2]
[406940573,1772310643235,-18057.98522094,0.0002,2]
[406940574,1772310643245,-2274.7577093,0.00021008,2]
[406940575,1772310643254,-150.50843836,0.00021273,2]
[406940576,1772310643264,-9089.3724383,0.0002151,2]
[406940577,1772310643273,-11198.0673904,0.00023204,2]
[406940579,1772310643283,-1000.0,0.00023954,30]
[406940581,1772310643292,-150.0,0.00024658,2]
[406940582,1772310643302,-200.0,0.00024877,6]
[406940584,1772310643311,-3100.0,0.000249,2]
[406940585,1772310643320,-89379.5570167,0.00024938,2]
[406940587,1772310643329,-36196.85,0.0002494,10]
[406940588,1772310643339,-929.98727379,0.00024959,3]
[406940590,1772310643348,-74244.8780009,0.0002497,2]
[406940592,1772310643357,-74244.8780009,0.0002498,2]
[406940593,1772310643367,-500.0,0.00024989,2]
[406940595,1772310643377,-500.0,0.00024989,2]
[406940597,1772310643386,-500.0,0.00024989,2]
[406940598,1772310643396,-500.0,0.00024989,2]
[406940599,1772310643406,-500.0,0.00024989,2]
[406940600,1772310643415,-459.42660873,0.00024989,2]
[406940601,1772310643424,-50015.98313232,0.0002499,2]
[406940602,1772310643436,-7617.08611736,0.0002499,2]
[406940603,1772310643447,-16611.80875122,0.0002499,2]
[406940604,1772310643457,-807.232977,0.0002499,2]
[406940605,1772310643466,-807.232977,0.0002499,2]
[406940606,1772310643476,-807.232977,0.0002499,2]
[406940607,1772310643487,-807.232977,0.0002499,2]
[406940608,1772310643496,-214.2841778,0.00024999,2]
[406940609,1772310643506,-313.80014576,0.00024999,2]
[406940610,1772310643515,-200.0,0.00025,17]
[406940611,1772310643525,-600.0,0.00025,2]
[406940612,1772310643535,-27132.42795714,0.00025,15]
[406940613,1772310643548,-2000.0,0.00025,15]
[406940614,1772310643557,-16061.17196153,0.00025,14]
[406940622,1772310646157,-1974.66803847,0.00025,14]
[406940623,1772310646167,-163.0,0.00025,7]
[406940624,1772310646176,-807.232977,0.00025,2]
[406940625,1772310646186,-807.232977,0.00025,2]
[406940626,1772310646195,-807.232977,0.00025,2]
[406940627,1772310646205,-807.232977,0.00025,2]
[406940628,1772310646214,-1028.0,0.00025,2]
[406940629,1772310646224,-162.05275,0.0002508,2]
[406940630,1772310646233,-162.05275,0.0002508,2]
[406940631,1772310646243,-162.05275,0.0002508,2]
[406940632,1772310646252,-162.05275,0.0002508,2]
[406940633,1772310646262,-807.232977,0.0002508,2]
[406940634,1772310646271,-571.82479142,0.0002508,2]
[406940635,1772310646283,-235.40818558,0.0002508,2]
[406940636,1772310646293,-807.232977,0.0002508,2]
[406940637,1772310646303,-807.232977,0.0002508,2]
[406940638,1772310646312,-285.66,0.000251,7]
[406940639,1772310646321,-168.97195613,0.00025105,2]
[406940640,1772310646331,-151.0,0.0002512,2]
[406940641,1772310646340,-151.0,0.0002512,2]
[406940642,1772310646350,-162.05275,0.0002512,2]
[406940643,1772310646360,-162.05275,0.0002512,2]
[406940644,1772310646370,-162.05275,0.0002512,2]
[406940645,1772310646379,-162.05275,0.0002512,2]
[406940647,1772310646388,-807.232977,0.0002512,2]
[406940648,1772310646398,-807.232977,0.0002512,2]
[406940649,1772310646407,-807.232977,0.0002512,2]
[406940650,1772310646416,-807.232977,0.0002512,2]
[406940651,1772310646426,-151.0,0.0002513,2]
[406940652,1772310646436,-213.928856,0.0002513,2]
[406940653,1772310646445,-162.05275,0.0002513,2]
[406940654,1772310646455,-162.05275,0.0002513,2]
[406940655,1772310646465,-162.05275,0.0002513,2]
[406940656,1772310646474,-162.05275,0.0002513,2]
[406940657,1772310646484,-807.232977,0.0002513,2]
[406940658,1772310646494,-807.232977,0.0002513,2]
[406940659,1772310646504,-807.232977,0.0002513,2]
[406940660,1772310646513,-807.232981,0.0002513,2]
[406940661,1772310646523,-151.0,0.0002514,2]
[406940662,1772310646535,-162.05275,0.0002514,2]
[406940663,1772310646548,-162.05275,0.0002514,2]
[406940664,1772310646557,-162.05275,0.0002514,2]
[406940665,1772310646567,-162.05275,0.0002514,2]
[406940666,1772310646579,-151.0,0.0002516,2]
[406940667,1772310646588,-162.05275,0.0002516,2]
[406940668,1772310646597,-162.05275,0.0002516,2]
[406940669,1772310646607,-162.05275,0.0002516,2]
[406940670,1772310646621,-162.052746,0.0002516,2]
[406940671,1772310646631,-85187.60433871,0.0002517,2]
[406940672,1772310682122,500.0,0.00013699,2]
[406940673,1772310682172,662.94160733,0.00014247,2]
[406940674,1772310768423,2054.24,0.000158,120]
[406940680,1772311208074,-1000.0,0.000254,120]
[406940681,1772311208096,-192.15,0.00026941,120]
[406940682,1772311208167,-73.85,0.00026941,120]
[406940683,1772311208189,-193.02561474,0.00027397,120]
[406940684,1772311208274,-806.97438526,0.00027397,120]
[406940685,1772311208298,-161.28990719,0.000274,120]
[406940686,1772311208337,-721.71009281,0.000274,120]
[406940692,1772311720077,1000.0,0.00027397,120]
[406940730,1772311832292,-586.50547661,0.00013292,2]
[406940732,1772311832302,-609.0,0.00013292,2]
[406940734,1772311832312,-744.89972287,0.00024106,2]
[406940736,1772311832322,-159.65633395,0.00024658,2]
[406940738,1772311832332,-2737.83514449,0.00024938,2]
[406940740,1772311832341,-300.0,0.00024999,2]
[406940742,1772311832351,-300.0,0.00024999,2]
[406940744,1772311832361,-163.0,0.00025,7]
[406940746,1772311832370,-2788.0,0.00025,2]
[406940748,1772311832380,-7139.3411781,0.00025,2]
[406940854,1772311846284,-3707.79999998,0.00025,2]
[406940855,1772311846342,-21248.99289406,0.00025,2]
[406940856,1772311846351,-200.0,0.000251,17]
[406940857,1772311846361,-44913.43200739,0.0002512,2]
[406940858,1772311846373,-14960.00685291,0.0002512,2]
[406940859,1772311846383,-59873.4388603,0.0002513,2]
[406940860,1772311846393,-977.65,0.00025132,2]
[406940861,1772311846403,-2352.6858106,0.00025132,2]
[406940862,1772311846412,-500.0,0.00025149,2]
[406940863,1772311846422,-500.0,0.00025149,2]
[406940864,1772311846432,-214.2841778,0.00025149,2]
[406940865,1772311846441,-500.0,0.00025149,2]
[406940866,1772311846451,-500.0,0.00025149,2]
[406940867,1772311846460,-500.0,0.00025149,2]
[406940868,1772311846470,-374.65298325,0.00025149,2]
[406940869,1772311846480,-500.0,0.00025149,2]
[406940870,1772311846491,-500.0,0.00025149,2]
[406940871,1772311846501,-321.68496092,0.00025149,2]
[406940872,1772311846510,-486.71494382,0.00025159,2]
[406940873,1772311846521,-179620.316581,0.0002517,2]
[406940874,1772311846531,-391.846079,0.0002517,2]
[406940875,1772311846541,-391.846079,0.0002517,2]
[406940876,1772311846550,-391.846079,0.0002517,2]
[406940877,1772311846560,-391.846079,0.0002517,2]
[406940878,1772311846569,-151.0,0.0002518,2]
[406940879,1772311846579,-391.846079,0.0002518,2]
[406940880,1772311846590,-391.846079,0.0002518,2]
[406940881,1772311846600,-391.846079,0.0002518,2]
[406940882,1772311846610,-391.846079,0.0002518,2]
[406940883,1772311846620,-113360.86523247,0.0002519,2]
[406940884,1772311846629,-342.0,0.00025205,15]
[406940885,1772311846639,-430.53249681,0.00025257,2]
[406940886,1772311846649,-5161.54701527,0.00025369,2]
[406940887,1772311846659,-600.0,0.00025387,10]
[406940888,1772311846668,-187.78006525,0.00025429,2]
[406940889,1772311846678,-194.72792766,0.00025429,2]
[406940890,1772311846687,-225.9557423,0.00025429,2]
[406940891,1772311846697,-151.0,0.00025434,2]
[406940892,1772311846707,-391.846079,0.00025434,2]
[406940893,1772311846716,-391.846079,0.00025434,2]
[406940894,1772311846726,-391.846079,0.00025434,2]
[406940895,1772311846736,-391.846079,0.00025434,2]
[406940896,1772311846746,-231742.66524647,0.00025434,2]
[406940899,1772311846762,-7355.99757,0.00025434,2]
[406940917,1772312462854,-62.52259506,0.00013562,2]
[406940954,1772313032008,-515.06083757,0.00013159,2]
[406940956,1772313032019,-305.62453423,0.00013159,2]
[406940958,1772313032028,-4.5669478,0.00013699,2]
[406940963,1772313032064,-151.4330522,0.00013699,2]
[406940965,1772313032073,-188.19396635,0.00013699,2]
[406940966,1772313032083,-344.43899745,0.00013699,2]
[406940968,1772313032093,-1969.19416575,0.00014,2]
[406940970,1772313032102,-1000.0,0.000179,2]
[406940972,1772313032111,-744.89972287,0.00018471,2]
[406940974,1772313032121,-1200.0,0.00019422,2]
[406940975,1772313032130,-832.3845931,0.00019423,2]
[406940977,1772313032139,-489.28060303,0.00020878,10]
[406940979,1772313032152,-252.21939697,0.00020878,10]
[406940981,1772313032164,-48.0000279,0.00021,2]
[406941023,1772313038241,-101.9999721,0.00021,2]
[406941025,1772313038252,-357.0,0.00021263,2]
[406941027,1772313038262,-689.133604,0.00021591,2]
[406941029,1772313038271,-300.0,0.00023146,2]
[406941031,1772313038281,-35.1491098,0.00023146,2]
[406941041,1772313040651,-264.8508902,0.00023146,2]
[406941042,1772313040661,-156.0,0.00023147,2]
[406941043,1772313040670,-2329.1941798,0.00025,15]
[406941044,1772313040682,-492.11047986,0.00025,15]
[406941050,1772313043260,-7953.51744111,0.00025,15]
[406941051,1772313043273,-318.77384957,0.00025,15]
[406941063,1772313046173,-8421.87557172,0.00025,15]
[406941064,1772313046229,-1287.825,0.00025,15]
[406941068,1772313287351,1800.0,0.000126,30]
[406941069,1772313287378,1800.0,0.000126,30]
[406941070,1772313287407,1922.0,0.000126,30]
[406941071,1772313374909,4000.0,0.0001001,2]
[406941142,1772314232317,-467.52642622,0.00011766,2]
[406941168,1772314232498,-33.98886337,0.00011766,2]
[406941170,1772314232508,-150.0,0.00012187,2]
[406941172,1772314232519,-1200.0,0.00013271,2]
[406941174,1772314232529,-300.0,0.00013272,2]
[406941176,1772314232539,-500.0,0.00013273,2]
[406941178,1772314232549,-470.10045035,0.00013273,2]
[406941180,1772314232558,-500.0,0.00013273,2]
[406941182,1772314232568,-500.0,0.00013273,2]
[406941184,1772314232577,-500.0,0.00013273,2]
[406941186,1772314232587,-314.20889447,0.00013273,2]
[406941188,1772314232596,-500.0,0.00013273,2]
[406941190,1772314232606,-500.0,0.00013273,2]
[406941192,1772314232616,-500.0,0.00013273,2]
[406941194,1772314232626,-500.0,0.00013273,2]
[406941196,1772314232635,-500.0,0.00013273,2]
[406941198,1772314232645,-402.04056091,0.00013273,2]
[406941201,1772314232658,-97.95943909,0.00013273,2]
[406941202,1772314232670,-500.0,0.00013273,2]
[406941205,1772314232680,-391.1335569,0.00013273,2]
[406941207,1772314232690,-500.0,0.00013273,2]
[406941209,1772314232700,-177.0,0.00014187,2]
[406941211,1772314232711,-468.00429667,0.00014598,2]
[406941329,1772314238362,-2721.75168527,0.00011648,2]
[406941330,1772314238425,-2082.85579782,0.00011648,2]
[406941331,1772314238435,-1211.99570333,0.00014598,2]
[406941332,1772314238447,-204.0,0.00016187,2]
[406941333,1772314238457,-231.0,0.00018187,2]
[406941334,1772314238467,-744.89972287,0.00018475,2]
[406941335,1772314238476,-362.0,0.00021379,10]
[406941336,1772314238487,-163.0,0.00022,2]
[406941337,1772314238497,-163.0,0.00023014,7]
[406941338,1772314238506,-163.0,0.00024164,7]
[406941339,1772314238516,-187.78006525,0.00024978,2]
[406941340,1772314238527,-194.72792766,0.00024978,2]
[406941341,1772314238536,-201.93286099,0.00024978,2]
[406941342,1772314238546,-209.40437684,0.00024978,2]
[406941343,1772314238556,-217.15233878,0.00024978,2]
[406941344,1772314238565,-225.18697532,0.00024978,2]
[406941345,1772314238574,-233.51889341,0.00024978,2]
[406941346,1772314238583,-242.15909246,0.00024978,2]
[406941347,1772314238592,-251.11897888,0.00024978,2]
[406941348,1772314238601,-260.4103811,0.00024978,2]
[406941349,1772314238611,-270.0455652,0.00024978,2]
[406941350,1772314238620,-263.11552401,0.00024978,2]
[406941351,1772314238631,-8841.37234798,0.00024978,2]
[406941352,1772314238640,-500.0,0.00024991,2]
[406941353,1772314238650,-500.0,0.00024991,2]
[406941354,1772314238659,-500.0,0.00024991,2]
[406941355,1772314238668,-500.0,0.00024991,2]
[406941356,1772314238677,-500.0,0.00024991,2]
[406941357,1772314238687,-500.0,0.00024991,2]
[406941358,1772314238696,-500.0,0.00024991,2]
[406941359,1772314238706,-500.0,0.00024991,2]
[406941360,1772314238716,-609.31546646,0.00024991,2]
[406941361,1772314238729,-500.0,0.00024991,2]
[406941362,1772314238739,-361.43473488,0.00024991,2]
[406941363,1772314238749,-500.0,0.00024991,2]
[406941364,1772314238759,-500.0,0.00024991,2]
[406941365,1772314238768,-500.0,0.00024991,2]
[406941366,1772314238778,-500.0,0.00024991,2]
[406941367,1772314238788,-500.0,0.00024991,2]
[406941368,1772314238797,-479.88540368,0.00024991,2]
[406941369,1772314238807,-500.0,0.00024991,2]
[406941370,1772314238817,-6329.13143508,0.00025,15]
[406941371,1772314238826,-15837.70385283,0.00025,14]
[406941372,1772314238839,-1312.0,0.00025,14]
[406941413,1772314240980,-622.5,0.00025,14]
[406941657,1772314246467,-578.21614717,0.00025,14]
[406941658,1772314246476,-272.0,0.00025,10]
[406941659,1772314246486,-682.1760381,0.00025145,2]
[406941660,1772314246497,-328.7203131,0.00025145,2]
[406941661,1772314246507,-2737.83514449,0.0002519,2]
[406941662,1772314246515,-213.28435657,0.00025204,2]
[406941663,1772314246527,-297.0,0.00025233,16]
[406941664,1772314246536,-171.48638023,0.00025269,2]
[406941665,1772314246546,-171.4863802,0.00025288,2]
[406941666,1772314246556,-171.4863802,0.00025307,2]
[406941667,1772314246565,-2798.18443166,0.00025314,10]
[406941668,1772314246577,-2366.09436622,0.00025314,10]
[406941672,1772314281805,-500.0,0.00013699,2]
[406941673,1772314310898,-217.9060895,0.00014247,2]
[406941680,1772315014922,1078.0,0.000126,30]
[406941681,1772315014949,3000.0,0.000126,30]
[406941682,1772315014975,3000.0,0.000126,30]
[406941683,1772315015001,1500.0,0.000126,30]
[406941684,1772315015028,1422.0,0.000126,30]
[406941685,1772315046706,78.0,0.00012,30]
[406941686,1772315046736,72.0,0.00012,30]
[406941687,1772315047432,2200.0,0.000136,60]
[406941688,1772315047459,2200.0,0.000136,60]
[406941689,1772315047487,2200.0,0.000136,60]
[406941690,1772315047513,2200.0,0.000136,60]
[406941691,1772315047541,1200.0,0.000136,60]
[406941693,1772315109235,150.0,0.00012,30]
[406941694,1772315168976,150.0,0.00012,30]
[406941695,1772315229906,150.0,0.00012,30]
[406941696,1772315289966,150.0,0.00012,30]
[406941697,1772315350216,150.0,0.00012,30]
[406941698,1772315409808,150.0,0.00012,30]
[406941722,1772315432414,-150.0,0.000102,2]
[406941724,1772315432424,-563.0,0.000102,2]
[406941726,1772315432433,-150.0,0.000102,16]
[406941727,1772315432443,-195.85,0.000102,15]
[406941728,1772315432451,-247.91,0.000108,13]
[406941730,1772315432461,-247.91,0.000108,14]
[406941732,1772315432470,-164.70989227,0.000122,2]
[406941734,1772315432479,-493.0,0.00021394,10]
[406941736,1772315432488,-1388.8977851,0.000217,2]
[406941737,1772315432498,-300.0,0.00022954,2]
[406941739,1772315432507,-566.7381839,0.00023468,2]
[406941741,1772315432516,-682.1760381,0.00024895,2]
[406941743,1772315432526,-328.7203131,0.00024895,2]
[406941745,1772315432535,-163.0,0.00025,7]
[406941746,1772315432544,-209.10383818,0.00025139,2]
[406941748,1772315432553,-2487.15318209,0.0002516,2]
[406941750,1772315432563,-300.0,0.00025174,2]
[406941752,1772315432571,-219.0,0.00025174,2]
[406941754,1772315432581,-1200.0,0.00025174,2]
[406941756,1772315432591,-2737.83514449,0.0002519,2]
[406941757,1772315432600,-816.61720507,0.00025269,2]
[406941759,1772315432610,-299.0,0.00025288,16]
[406941761,1772315432619,-1900.0,0.000253,4]
[406941763,1772315432628,-171.48638023,0.00025334,2]
[406941764,1772315432637,-171.4863802,0.00025343,2]
[406941766,1772315432647,-145.42474967,0.00025352,2]
[406941768,1772315432658,-26.06163053,0.00025352,2]
[406941770,1772315432668,-250.0,0.00025355,2]
[406941772,1772315432677,-228.01667642,0.00025355,2]
[406941774,1772315432688,-21.98332358,0.00025355,2]
[406941776,1772315432698,-250.0,0.00025355,2]
[406941778,1772315432708,-183.01761379,0.00025355,2]
[406941780,1772315432719,-66.98238621,0.00025355,2]
[406941782,1772315432728,-250.0,0.00025355,2]
[406941783,1772315432737,-171.4863802,0.0002536,2]
[406941785,1772315432747,-623.74007485,0.00025369,2]
[406941872,1772315438627,-744.89972287,0.00024415,2]
[406941873,1772315438638,-517.12001227,0.00025369,2]
[406941941,1772315443991,-305.62453423,0.00025115,2]
[406941942,1772315444002,-3504.53222665,0.00025369,2]
[406941943,1772315444012,-171.4863802,0.00025369,2]
[406941944,1772315444022,-370.0,0.00025369,10]
[406941945,1772315444033,-22900.44143586,0.00025394,10]
[406941949,1772315446632,-12016.39653973,0.00025394,10]
[406941950,1772315446859,-8438.01202441,0.00025394,10]
[406941951,1772315446869,-15688.58363301,0.00025394,10]
[406941952,1772315446880,-8421.87968616,0.00025394,10]
[406941953,1772315447009,-2444.95746892,0.00025394,10]
[406941959,1772316062791,-3147.52557808,0.00013159,2]
[406941960,1772316062815,-1852.47442192,0.00013159,2]
[406941961,1772316092102,-3147.52557808,0.0001287,2]
[406941974,1772316254434,4116.1,0.0001001,2]
[406941975,1772316264568,7790.8214938,0.0001,2]
[406942025,1772316631717,-5000.0,0.00012144,2]
[406942027,1772316631727,-5000.0,0.00012267,2]
[406942029,1772316631737,-593.0,0.00012267,2]
[406942031,1772316631746,-1200.0,0.0001239,2]
[406942033,1772316631755,-300.0,0.00012452,2]
[406942035,1772316631765,-300.0,0.00012452,2]
[406942037,1772316631775,-300.0,0.00012452,2]
[406942039,1772316631784,-278.45609867,0.00012452,2]
[406942087,1772316637729,-21.54390133,0.00012452,2]
[406942088,1772316637740,-300.0,0.00012453,2]
[406942089,1772316637749,-150.0,0.00012454,2]
[406942090,1772316637759,-4448.50301922,0.0001277,2]
[406942091,1772316637768,-302.8106809,0.0001277,2]
[406942092,1772316637778,-8930.62,0.00013,2]
[406942093,1772316637787,-500.0,0.00013598,2]
[406942094,1772316637797,-1680.0,0.00013629,2]
[406942095,1772316637807,-420.0,0.00013663,2]
[406942096,1772316637816,-430.10048227,0.00014314,2]
[406942097,1772316637828,-69.89951773,0.00014314,2]
[406942099,1772316637838,-177.0,0.00014454,2]
[406942100,1772316637848,-587.0,0.00014992,2]
[406942101,1772316637858,-206.82608165,0.00014997,2]
[406942102,1772316637868,-500.0,0.00014997,2]
[406942103,1772316637879,-500.0,0.00014997,2]
[406942104,1772316637888,-500.0,0.00014997,2]
[406942105,1772316637898,-178.81282961,0.00014997,2]
[406942106,1772316637908,-500.0,0.00014997,2]
[406942107,1772316637918,-500.0,0.00014997,2]
[406942108,1772316637929,-500.0,0.00014997,2]
[406942109,1772316637939,-500.0,0.00014997,2]
[406942110,1772316637948,-500.0,0.00014997,2]
[406942111,1772316637958,-500.0,0.00014997,2]
[406942112,1772316637968,-500.0,0.00014997,2]
[406942113,1772316637979,-404.89282631,0.00014997,2]
[406942114,1772316637992,-500.0,0.00014997,2]
[406942115,1772316638002,-500.0,0.00014997,2]
[406942116,1772316638013,-447.98854037,0.00014997,2]
[406942117,1772316638023,-500.0,0.00014997,2]
[406942118,1772316638033,-500.0,0.00014997,2]
[406942119,1772316638045,-500.0,0.00014997,2]
[406942120,1772316638055,-500.0,0.00014997,2]
[406942121,1772316638065,-500.0,0.00014997,2]
[406942122,1772316638077,-500.0,0.00014997,2]
[406942123,1772316638089,-500.0,0.00014997,2]
[406942124,1772316638099,-523.39667895,0.00014997,2]
[406942125,1772316638108,-500.0,0.00014997,2]
[406942126,1772316638119,-500.0,0.00014997,2]
[406942127,1772316638128,-500.0,0.00014997,2]
[406942128,1772316638140,-518.56638689,0.00014997,2]
[406942129,1772316638152,-500.0,0.00014997,2]
[406942130,1772316638163,-500.0,0.00014997,2]